[Event "Early Titled Tuesday Blitz | February 8 2022"]
[White "Pakleza, Zbigniew"]
[Black "Howell, David W L"]
[WhiteFideId "1119290"]
[BlackFideId "410608"]
[WhiteElo "2467"]
[BlackElo "2559"]
[Result "1/2-1/2"]
[Round "10"]
[TimeControl "180+1"]
[Date "2022.02.08"]
[WhiteClock "0:00:06"]
[BlackClock "0:00:12"]

1. d4 {[%clk 0:02:50]}  Nf6 {[%clk 0:02:51]} 2. Nf3 {[%clk 0:02:50]}  g6 {[%clk 0:02:49]} 3. Bf4 {[%clk 0:02:50]}  Bg7 {[%clk 0:02:49]} 4. e3 {[%clk 0:02:50]}  O-O {[%clk 0:02:50]} 5. Be2 {[%clk 0:02:51]}  c5 {[%clk 0:02:49]} 6. c3 {[%clk 0:02:51]}  Qb6 {[%clk 0:02:49]} 7. Qb3 {[%clk 0:02:51]}  d6 {[%clk 0:02:49]} 8. Nbd2 {[%clk 0:02:51]}  Be6 {[%clk 0:02:47]} 9. Qxb6 {[%clk 0:02:51]}  axb6 {[%clk 0:02:48]} 10. a3 {[%clk 0:02:52]}  Bd7 {[%clk 0:02:35]} 11. h3 {[%clk 0:02:49]}  Bc6 {[%clk 0:02:34]} 12. O-O {[%clk 0:02:48]}  Nbd7 {[%clk 0:02:33]} 13. Rfe1 {[%clk 0:02:39]}  b5 {[%clk 0:02:28]} 14. Bf1 {[%clk 0:02:32]}  Rfe8 {[%clk 0:02:18]} 15. Bh2 {[%clk 0:02:19]}  e5 {[%clk 0:02:16]} 16. Red1 {[%clk 0:02:14]}  h6 {[%clk 0:01:57]} 17. Rac1 {[%clk 0:01:47]}  c4 {[%clk 0:01:53]} 18. Ne1 {[%clk 0:01:39]}  Nb6 {[%clk 0:01:47]} 19. Nc2 {[%clk 0:01:31]}  Na4 {[%clk 0:01:38]} 20. Rb1 {[%clk 0:01:31]}  Rad8 {[%clk 0:01:29]} 21. g4 {[%clk 0:01:07]}  h5 {[%clk 0:01:25]} 22. g5 {[%clk 0:00:59]}  Ne4 {[%clk 0:01:24]} 23. h4 {[%clk 0:00:56]}  Nexc3 {[%clk 0:01:15]} 24. bxc3 {[%clk 0:00:57]}  Nxc3 {[%clk 0:01:16]} 25. Bg2 {[%clk 0:00:50]}  exd4 {[%clk 0:01:07]} 26. Nxd4 {[%clk 0:00:49]}  Bxd4 {[%clk 0:01:06]} 27. exd4 {[%clk 0:00:50]}  Ne2+ {[%clk 0:00:47]} 28. Kf1 {[%clk 0:00:42]}  Bxg2+ {[%clk 0:00:48]} 29. Kxg2 {[%clk 0:00:42]}  c3 {[%clk 0:00:49]} 30. Rxb5 {[%clk 0:00:31]}  c2 {[%clk 0:00:45]} 31. Ra1 {[%clk 0:00:32]}  c1=Q {[%clk 0:00:43]} 32. Rxc1 {[%clk 0:00:32]}  Nxc1 {[%clk 0:00:44]} 33. Nc4 {[%clk 0:00:28]}  Ne2 {[%clk 0:00:37]} 34. Nxd6 {[%clk 0:00:23]}  Re6 {[%clk 0:00:35]} 35. Nxb7 {[%clk 0:00:07]}  Rxd4 {[%clk 0:00:35]} 36. Be5 {[%clk 0:00:06]}  Rg4+ {[%clk 0:00:26]} 37. Kf3 {[%clk 0:00:06]}  Nd4+ {[%clk 0:00:23]} 38. Bxd4 {[%clk 0:00:07]}  Rxd4 {[%clk 0:00:24]} 39. Nc5 {[%clk 0:00:07]}  Re5 {[%clk 0:00:20]} 40. Rb8+ {[%clk 0:00:07]}  Kg7 {[%clk 0:00:21]} 41. Nb3 {[%clk 0:00:06]}  Rd3+ {[%clk 0:00:21]} 42. Kg2 {[%clk 0:00:06]}  Rf5 {[%clk 0:00:19]} 43. a4 {[%clk 0:00:05]}  Rf4 {[%clk 0:00:18]} 44. Nc5 {[%clk 0:00:04]}  Rc3 {[%clk 0:00:17]} 45. Nd7 {[%clk 0:00:04]}  Ra3 {[%clk 0:00:13]} 46. Nf6 {[%clk 0:00:04]}  Rxf6 {[%clk 0:00:13]} 47. gxf6+ {[%clk 0:00:05]}  Kxf6 {[%clk 0:00:14]} 48. Rb4 {[%clk 0:00:05]}  Kf5 {[%clk 0:00:13]} 49. f3 {[%clk 0:00:05]}  Ra2+ {[%clk 0:00:11]} 50. Kg3 {[%clk 0:00:06]}  Ra3 {[%clk 0:00:12]} 51. Rb5+ {[%clk 0:00:06]} 1/2-1/2


[Site "https://www.chess.com"]

[Event "Early Titled Tuesday Blitz | February 8 2022"]
[White "Pesotskiy, Mikhail"]
[Black "Lagunov, Evgenij"]
[WhiteFideId "34164453"]
[BlackFideId "4125363"]
[WhiteElo "2010"]
[BlackElo "2200"]
[Result "1-0"]
[Round "10"]
[TimeControl "180+1"]
[Date "2022.02.08"]
[WhiteClock "0:00:36"]
[BlackClock "0:00:02"]

1. d4 {[%clk 0:03:00]}  Nf6 {[%clk 0:02:58]} 2. c4 {[%clk 0:03:00]}  e6 {[%clk 0:02:58]} 3. Nc3 {[%clk 0:03:00]}  d5 {[%clk 0:02:58]} 4. cxd5 {[%clk 0:03:00]}  exd5 {[%clk 0:02:57]} 5. Bg5 {[%clk 0:03:00]}  c6 {[%clk 0:02:56]} 6. e3 {[%clk 0:03:00]}  Bf5 {[%clk 0:02:57]} 7. Qb3 {[%clk 0:03:00]}  b6 {[%clk 0:02:47]} 8. Nge2 {[%clk 0:02:58]}  Be7 {[%clk 0:02:46]} 9. Ng3 {[%clk 0:02:59]}  Bg6 {[%clk 0:02:46]} 10. Be2 {[%clk 0:02:54]}  O-O {[%clk 0:02:45]} 11. O-O {[%clk 0:02:54]}  Nbd7 {[%clk 0:02:44]} 12. Rac1 {[%clk 0:02:52]}  a5 {[%clk 0:02:39]} 13. a4 {[%clk 0:02:37]}  h6 {[%clk 0:02:31]} 14. Bf4 {[%clk 0:02:37]}  Bb4 {[%clk 0:02:20]} 15. Rfd1 {[%clk 0:02:37]}  Re8 {[%clk 0:02:19]} 16. Na2 {[%clk 0:02:36]}  Bf8 {[%clk 0:02:18]} 17. Rxc6 {[%clk 0:02:35]}  Ne4 {[%clk 0:01:49]} 18. Qxd5 {[%clk 0:02:32]}  Nxg3 {[%clk 0:01:34]} 19. Bf3 {[%clk 0:02:08]}  Be4 {[%clk 0:01:24]} 20. Bxe4 {[%clk 0:02:02]}  Nxe4 {[%clk 0:01:21]} 21. Rdc1 {[%clk 0:01:58]}  Nef6 {[%clk 0:01:15]} 22. Qb3 {[%clk 0:01:53]}  Qe7 {[%clk 0:01:11]} 23. Nc3 {[%clk 0:01:31]}  Ne4 {[%clk 0:01:05]} 24. Nd5 {[%clk 0:01:28]}  Qh4 {[%clk 0:00:56]} 25. f3 {[%clk 0:01:13]}  Qf2+ {[%clk 0:00:49]} 26. Kh1 {[%clk 0:01:13]}  Ng5 {[%clk 0:00:41]} 27. R6c2 {[%clk 0:01:07]}  Qh4 {[%clk 0:00:37]} 28. Nc7 {[%clk 0:01:07]}  Ne6 {[%clk 0:00:26]} 29. Bg3 {[%clk 0:01:04]}  Qg5 {[%clk 0:00:24]} 30. Nxa8 {[%clk 0:01:02]}  Rxa8 {[%clk 0:00:21]} 31. Qb5 {[%clk 0:01:00]}  Qxb5 {[%clk 0:00:17]} 32. axb5 {[%clk 0:01:01]}  Bb4 {[%clk 0:00:15]} 33. Rc7 {[%clk 0:00:53]}  Nf6 {[%clk 0:00:14]} 34. Rb7 {[%clk 0:00:50]}  Nd5 {[%clk 0:00:13]} 35. e4 {[%clk 0:00:51]}  Ne3 {[%clk 0:00:10]} 36. d5 {[%clk 0:00:48]}  Nc5 {[%clk 0:00:09]} 37. Rxb6 {[%clk 0:00:45]}  Na4 {[%clk 0:00:08]} 38. Rb8+ {[%clk 0:00:38]}  Rxb8 {[%clk 0:00:06]} 39. Bxb8 {[%clk 0:00:39]}  Nxb2 {[%clk 0:00:03]} 40. b6 {[%clk 0:00:38]}  a4 {[%clk 0:00:02]} 41. b7 {[%clk 0:00:36]} 1-0


[Site "https://www.chess.com"]

[Event "Early Titled Tuesday Blitz | February 8 2022"]
[White "Pourramezanali, Amirreza"]
[Black "Yuan, Qingyu"]
[WhiteFideId "12511412"]
[BlackFideId "8609772"]
[WhiteElo "2376"]
[BlackElo "2359"]
[Result "0-1"]
[Round "10"]
[TimeControl "180+1"]
[Date "2022.02.08"]
[WhiteClock "0:01:12"]
[BlackClock "0:00:36"]

1. d4 {[%clk 0:02:57]}  d5 {[%clk 0:02:59]} 2. c4 {[%clk 0:02:57]}  e6 {[%clk 0:02:59]} 3. Nc3 {[%clk 0:02:56]}  Nf6 {[%clk 0:03:00]} 4. cxd5 {[%clk 0:02:56]}  exd5 {[%clk 0:03:00]} 5. Bg5 {[%clk 0:02:56]}  c6 {[%clk 0:03:00]} 6. e3 {[%clk 0:02:56]}  h6 {[%clk 0:03:01]} 7. Bh4 {[%clk 0:02:55]}  Be7 {[%clk 0:03:01]} 8. Bd3 {[%clk 0:02:55]}  O-O {[%clk 0:03:02]} 9. Qc2 {[%clk 0:02:54]}  Re8 {[%clk 0:03:02]} 10. Nge2 {[%clk 0:02:54]}  Nbd7 {[%clk 0:03:02]} 11. O-O {[%clk 0:02:54]}  a5 {[%clk 0:02:58]} 12. f3 {[%clk 0:02:49]}  b5 {[%clk 0:02:57]} 13. Bf2 {[%clk 0:02:48]}  Ba6 {[%clk 0:02:54]} 14. a4 {[%clk 0:02:46]}  b4 {[%clk 0:02:47]} 15. Bxa6 {[%clk 0:02:45]}  Rxa6 {[%clk 0:02:46]} 16. Nb1 {[%clk 0:02:46]}  c5 {[%clk 0:02:43]} 17. dxc5 {[%clk 0:02:46]}  Bxc5 {[%clk 0:02:43]} 18. Nd4 {[%clk 0:02:45]}  Bxd4 {[%clk 0:02:36]} 19. exd4 {[%clk 0:02:44]}  Rae6 {[%clk 0:02:36]} 20. Nd2 {[%clk 0:02:42]}  Qb6 {[%clk 0:02:32]} 21. Qd3 {[%clk 0:02:36]}  Re2 {[%clk 0:02:11]} 22. b3 {[%clk 0:02:35]}  Nh5 {[%clk 0:02:05]} 23. g3 {[%clk 0:02:15]}  Qg6 {[%clk 0:01:37]} 24. Qxg6 {[%clk 0:02:08]}  fxg6 {[%clk 0:01:37]} 25. Rfe1 {[%clk 0:01:59]}  Nhf6 {[%clk 0:01:36]} 26. Rxe2 {[%clk 0:01:58]}  Rxe2 {[%clk 0:01:36]} 27. Rd1 {[%clk 0:01:59]}  Re6 {[%clk 0:01:30]} 28. Rc1 {[%clk 0:01:49]}  Re2 {[%clk 0:01:30]} 29. Rc2 {[%clk 0:01:45]}  g5 {[%clk 0:00:57]} 30. Kf1 {[%clk 0:01:43]}  Re6 {[%clk 0:00:54]} 31. g4 {[%clk 0:01:43]}  Kf7 {[%clk 0:00:43]} 32. Bg3 {[%clk 0:01:35]}  Re3 {[%clk 0:00:39]} 33. Bc7 {[%clk 0:01:23]}  Rc3 {[%clk 0:00:38]} 34. Rxc3 {[%clk 0:01:13]}  bxc3 {[%clk 0:00:38]} 35. Ke2 {[%clk 0:01:12]}  c2 {[%clk 0:00:36]} 0-1


[Site "https://www.chess.com"]

[Event "Early Titled Tuesday Blitz | February 8 2022"]
[White "Quirke, Jeffrey"]
[Black "Bashirli, Saadat"]
[WhiteFideId "2013029"]
[BlackFideId "13429990"]
[WhiteElo "2251"]
[BlackElo "1173"]
[Result "1-0"]
[Round "10"]
[TimeControl "180+1"]
[Date "2022.02.08"]
[WhiteClock "0:01:21"]
[BlackClock "0:01:08"]

1. d4 {[%clk 0:03:00]}  d5 {[%clk 0:02:59]} 2. c4 {[%clk 0:03:01]}  e6 {[%clk 0:02:59]} 3. Nc3 {[%clk 0:03:01]}  c6 {[%clk 0:03:00]} 4. e3 {[%clk 0:03:01]}  dxc4 {[%clk 0:02:58]} 5. Bxc4 {[%clk 0:02:59]}  b5 {[%clk 0:02:58]} 6. Bd3 {[%clk 0:02:57]}  Bb7 {[%clk 0:02:58]} 7. Nf3 {[%clk 0:02:53]}  Nf6 {[%clk 0:02:58]} 8. e4 {[%clk 0:02:52]}  Bb4 {[%clk 0:02:58]} 9. O-O {[%clk 0:02:49]}  O-O {[%clk 0:02:57]} 10. e5 {[%clk 0:02:49]}  Nd5 {[%clk 0:02:31]} 11. Bxh7+ {[%clk 0:02:46]}  Kh8 {[%clk 0:02:32]} 12. Ng5 {[%clk 0:02:44]}  g6 {[%clk 0:02:21]} 13. Qg4 {[%clk 0:02:38]}  Kg7 {[%clk 0:02:19]} 14. Bxg6 {[%clk 0:02:19]}  Nd7 {[%clk 0:01:55]} 15. Bxf7 {[%clk 0:01:45]}  Rxf7 {[%clk 0:01:21]} 16. Nxe6+ {[%clk 0:01:44]}  Kh8 {[%clk 0:01:19]} 17. Nxd8 {[%clk 0:01:43]}  Rxd8 {[%clk 0:01:18]} 18. Nxd5 {[%clk 0:01:41]}  cxd5 {[%clk 0:01:14]} 19. Qh4+ {[%clk 0:01:41]}  Kg7 {[%clk 0:01:12]} 20. Qxd8 {[%clk 0:01:40]}  Nb6 {[%clk 0:01:13]} 21. Qg5+ {[%clk 0:01:32]}  Kf8 {[%clk 0:01:12]} 22. Qh6+ {[%clk 0:01:30]}  Ke7 {[%clk 0:01:10]} 23. Bg5+ {[%clk 0:01:28]}  Ke8 {[%clk 0:01:09]} 24. e6 {[%clk 0:01:22]}  Rf8 {[%clk 0:01:08]} 25. Qg6+ {[%clk 0:01:21]} 1-0


[Site "https://www.chess.com"]

[Event "Early Titled Tuesday Blitz | February 8 2022"]
[White "Rakhmanov, Aleksandr"]
[Black "Deac, Bogdan-Daniel"]
[WhiteFideId "4173708"]
[BlackFideId "1226380"]
[WhiteElo "2500"]
[BlackElo "2646"]
[Result "0-1"]
[Round "10"]
[TimeControl "180+1"]
[Date "2022.02.08"]
[WhiteClock "0:00:01"]
[BlackClock "0:00:09"]

1. d4 {[%clk 0:02:59]}  Nf6 {[%clk 0:02:45]} 2. c4 {[%clk 0:02:58]}  g6 {[%clk 0:02:45]} 3. Nc3 {[%clk 0:02:57]}  d5 {[%clk 0:02:45]} 4. Nf3 {[%clk 0:02:57]}  Bg7 {[%clk 0:02:45]} 5. cxd5 {[%clk 0:02:54]}  Nxd5 {[%clk 0:02:45]} 6. Qa4+ {[%clk 0:02:54]}  Nc6 {[%clk 0:02:35]} 7. e4 {[%clk 0:02:53]}  Nb6 {[%clk 0:02:35]} 8. Qc2 {[%clk 0:02:54]}  Bxd4 {[%clk 0:02:10]} 9. Bb5 {[%clk 0:02:52]}  Bd7 {[%clk 0:02:02]} 10. Bxc6 {[%clk 0:02:42]}  Bxc6 {[%clk 0:02:01]} 11. Bh6 {[%clk 0:02:42]}  e5 {[%clk 0:01:31]} 12. O-O-O {[%clk 0:02:17]}  Qf6 {[%clk 0:01:20]} 13. h4 {[%clk 0:01:35]}  O-O-O {[%clk 0:01:12]} 14. Bg5 {[%clk 0:01:31]}  Qe6 {[%clk 0:01:10]} 15. Bxd8 {[%clk 0:01:28]}  Rxd8 {[%clk 0:01:11]} 16. Rhe1 {[%clk 0:01:17]}  Bxc3 {[%clk 0:00:51]} 17. Rxd8+ {[%clk 0:01:08]}  Kxd8 {[%clk 0:00:49]} 18. Qxc3 {[%clk 0:01:07]}  f6 {[%clk 0:00:40]} 19. b3 {[%clk 0:01:04]}  Qg4 {[%clk 0:00:37]} 20. Qc5 {[%clk 0:00:47]}  Ke8 {[%clk 0:00:27]} 21. Kb2 {[%clk 0:00:45]}  Qxg2 {[%clk 0:00:25]} 22. Nxe5 {[%clk 0:00:30]}  fxe5 {[%clk 0:00:24]} 23. Qxe5+ {[%clk 0:00:29]}  Kf7 {[%clk 0:00:23]} 24. Qxc7+ {[%clk 0:00:16]}  Nd7 {[%clk 0:00:21]} 25. Qf4+ {[%clk 0:00:16]}  Ke8 {[%clk 0:00:20]} 26. e5 {[%clk 0:00:11]}  Nc5 {[%clk 0:00:20]} 27. Re3 {[%clk 0:00:05]}  Qd5 {[%clk 0:00:17]} 28. e6 {[%clk 0:00:04]}  Qd2+ {[%clk 0:00:09]} 29. Ka3 {[%clk 0:00:04]}  Qc1+ {[%clk 0:00:08]} 30. Kb4 {[%clk 0:00:02]}  Nd3+ {[%clk 0:00:09]} 31. Rxd3 {[%clk 0:00:01]}  Qxf4+ {[%clk 0:00:09]} 0-1


[Site "https://www.chess.com"]

[Event "Early Titled Tuesday Blitz | February 8 2022"]
[White "Rodchenkov, Sergey D."]
[Black "Delorme, Alban"]
[WhiteFideId "4168712"]
[BlackFideId "623636"]
[WhiteElo "2306"]
[BlackElo "2197"]
[Result "1-0"]
[Round "10"]
[TimeControl "180+1"]
[Date "2022.02.08"]
[WhiteClock "0:00:44"]
[BlackClock "0:00:04"]

1. e4 {[%clk 0:03:00]}  c5 {[%clk 0:03:00]} 2. Nf3 {[%clk 0:02:59]}  d6 {[%clk 0:03:00]} 3. d4 {[%clk 0:03:00]}  cxd4 {[%clk 0:03:01]} 4. Nxd4 {[%clk 0:03:01]}  Nf6 {[%clk 0:03:02]} 5. Nc3 {[%clk 0:03:01]}  a6 {[%clk 0:03:02]} 6. Bg5 {[%clk 0:03:01]}  e6 {[%clk 0:03:02]} 7. f4 {[%clk 0:03:02]}  Be7 {[%clk 0:03:02]} 8. Qf3 {[%clk 0:03:02]}  Qc7 {[%clk 0:03:03]} 9. O-O-O {[%clk 0:03:03]}  Nbd7 {[%clk 0:03:04]} 10. g4 {[%clk 0:03:02]}  b5 {[%clk 0:03:03]} 11. Bxf6 {[%clk 0:03:03]}  Nxf6 {[%clk 0:03:04]} 12. g5 {[%clk 0:03:03]}  Nd7 {[%clk 0:03:05]} 13. f5 {[%clk 0:03:04]}  Nc5 {[%clk 0:03:05]} 14. f6 {[%clk 0:02:57]}  gxf6 {[%clk 0:03:06]} 15. gxf6 {[%clk 0:02:57]}  Bf8 {[%clk 0:03:06]} 16. Rg1 {[%clk 0:02:54]}  Bb7 {[%clk 0:03:05]} 17. a3 {[%clk 0:02:54]}  O-O-O {[%clk 0:03:02]} 18. Bh3 {[%clk 0:02:51]}  Kb8 {[%clk 0:02:59]} 19. Kb1 {[%clk 0:02:51]}  h5 {[%clk 0:02:44]} 20. b4 {[%clk 0:02:40]}  e5 {[%clk 0:02:29]} 21. Nb3 {[%clk 0:02:18]}  Ne6 {[%clk 0:01:49]} 22. Nd5 {[%clk 0:01:53]}  Bxd5 {[%clk 0:01:36]} 23. exd5 {[%clk 0:01:54]}  Nf4 {[%clk 0:01:35]} 24. Na5 {[%clk 0:01:55]}  Nxh3 {[%clk 0:01:04]} 25. Qxh3 {[%clk 0:01:44]}  Rc8 {[%clk 0:00:41]} 26. Nc6+ {[%clk 0:01:43]}  Kb7 {[%clk 0:00:37]} 27. c4 {[%clk 0:01:26]}  bxc4 {[%clk 0:00:22]} 28. Rc1 {[%clk 0:01:26]}  Qb6 {[%clk 0:00:20]} 29. Rg2 {[%clk 0:00:56]}  Bh6 {[%clk 0:00:11]} 30. Rxc4 {[%clk 0:00:55]}  Qb5 {[%clk 0:00:09]} 31. Qd7+ {[%clk 0:00:51]}  Rc7 {[%clk 0:00:09]} 32. Na5+ {[%clk 0:00:41]}  Qxa5 {[%clk 0:00:09]} 33. Qc6+ {[%clk 0:00:42]}  Rxc6 {[%clk 0:00:06]} 34. dxc6+ {[%clk 0:00:43]}  Kc7 {[%clk 0:00:04]} 35. bxa5 {[%clk 0:00:43]}  Be3 {[%clk 0:00:04]} 36. Rb2 {[%clk 0:00:44]} 1-0


[Site "https://www.chess.com"]

[Event "Early Titled Tuesday Blitz | February 8 2022"]
[White "Roman, Rodrigo"]
[Black "Zanette, Edgard Vinicius"]
[WhiteFideId "3701220"]
[BlackFideId "2109263"]
[WhiteElo "2001"]
[BlackElo "2182"]
[Result "0-1"]
[Round "10"]
[TimeControl "180+1"]
[Date "2022.02.08"]
[WhiteClock "0:02:09"]
[BlackClock "0:01:32"]

1. d4 {[%clk 0:02:58]}  d5 {[%clk 0:02:58]} 2. Nf3 {[%clk 0:02:56]}  Nf6 {[%clk 0:02:58]} 3. e3 {[%clk 0:02:56]}  c5 {[%clk 0:02:57]} 4. Bd3 {[%clk 0:02:56]}  Nc6 {[%clk 0:02:51]} 5. b3 {[%clk 0:02:56]}  cxd4 {[%clk 0:02:49]} 6. exd4 {[%clk 0:02:57]}  Bg4 {[%clk 0:02:49]} 7. Bb2 {[%clk 0:02:56]}  e6 {[%clk 0:02:48]} 8. O-O {[%clk 0:02:55]}  Bd6 {[%clk 0:02:45]} 9. Nbd2 {[%clk 0:02:52]}  O-O {[%clk 0:02:44]} 10. a3 {[%clk 0:02:50]}  Rc8 {[%clk 0:02:39]} 11. Be2 {[%clk 0:02:50]}  Ne4 {[%clk 0:02:35]} 12. h3 {[%clk 0:02:43]}  Bf5 {[%clk 0:02:26]} 13. Bd3 {[%clk 0:02:39]}  Bg6 {[%clk 0:02:16]} 14. c4 {[%clk 0:02:28]}  Nxf2 {[%clk 0:02:07]} 15. Rxf2 {[%clk 0:02:24]}  Bxd3 {[%clk 0:02:07]} 16. c5 {[%clk 0:02:24]}  Bg3 {[%clk 0:02:04]} 17. Nf1 {[%clk 0:02:17]}  Bxf2+ {[%clk 0:01:57]} 18. Kxf2 {[%clk 0:02:17]}  Be4 {[%clk 0:01:50]} 19. Ng3 {[%clk 0:02:18]}  f5 {[%clk 0:01:48]} 20. Ne5 {[%clk 0:02:15]}  Nxe5 {[%clk 0:01:48]} 21. dxe5 {[%clk 0:02:16]}  Rxc5 {[%clk 0:01:43]} 22. Qd4 {[%clk 0:02:15]}  Rc2+ {[%clk 0:01:42]} 23. Ne2 {[%clk 0:02:10]}  Qh4+ {[%clk 0:01:38]} 24. Kg1 {[%clk 0:02:09]}  Rxe2 {[%clk 0:01:32]} 0-1


[Site "https://www.chess.com"]

[Event "Early Titled Tuesday Blitz | February 8 2022"]
[White "Sadhwani, Raunak"]
[Black "Orozbaev, Eldiar"]
[WhiteFideId "35093487"]
[BlackFideId "13802240"]
[WhiteElo "2616"]
[BlackElo "2050"]
[Result "0-1"]
[Round "10"]
[TimeControl "180+1"]
[Date "2022.02.08"]
[WhiteClock "0:00:02"]
[BlackClock "0:00:15"]

1. d4 {[%clk 0:03:00]}  Nf6 {[%clk 0:02:59]} 2. Nf3 {[%clk 0:03:01]}  c5 {[%clk 0:02:59]} 3. d5 {[%clk 0:03:01]}  e6 {[%clk 0:02:59]} 4. c4 {[%clk 0:02:59]}  exd5 {[%clk 0:02:59]} 5. cxd5 {[%clk 0:03:00]}  d6 {[%clk 0:03:00]} 6. Nc3 {[%clk 0:03:00]}  g6 {[%clk 0:03:00]} 7. e4 {[%clk 0:03:00]}  Bg7 {[%clk 0:03:01]} 8. Bd3 {[%clk 0:02:59]}  O-O {[%clk 0:03:01]} 9. O-O {[%clk 0:02:59]}  a6 {[%clk 0:02:59]} 10. a4 {[%clk 0:02:59]}  Bg4 {[%clk 0:02:58]} 11. h3 {[%clk 0:02:59]}  Bxf3 {[%clk 0:02:58]} 12. Qxf3 {[%clk 0:02:59]}  Nbd7 {[%clk 0:02:56]} 13. Qg3 {[%clk 0:03:00]}  Nh5 {[%clk 0:02:55]} 14. Qh2 {[%clk 0:02:58]}  Ne5 {[%clk 0:02:45]} 15. Be2 {[%clk 0:02:57]}  f5 {[%clk 0:02:30]} 16. exf5 {[%clk 0:02:52]}  Rxf5 {[%clk 0:01:56]} 17. f4 {[%clk 0:02:28]}  Rf7 {[%clk 0:01:43]} 18. g4 {[%clk 0:02:25]}  Nxf4 {[%clk 0:01:41]} 19. Bxf4 {[%clk 0:02:22]}  Qb6 {[%clk 0:01:41]} 20. Rab1 {[%clk 0:01:53]}  Qb4 {[%clk 0:01:39]} 21. Kh1 {[%clk 0:01:36]}  Re8 {[%clk 0:01:36]} 22. Bg3 {[%clk 0:01:26]}  Rfe7 {[%clk 0:01:26]} 23. Qg2 {[%clk 0:01:13]}  Nf7 {[%clk 0:01:22]} 24. Bf3 {[%clk 0:01:08]}  Ng5 {[%clk 0:01:19]} 25. Bxd6 {[%clk 0:01:02]}  Re3 {[%clk 0:01:18]} 26. Rbc1 {[%clk 0:00:44]}  b5 {[%clk 0:01:05]} 27. axb5 {[%clk 0:00:43]}  axb5 {[%clk 0:01:06]} 28. Bg3 {[%clk 0:00:29]}  Nxf3 {[%clk 0:00:58]} 29. Rxf3 {[%clk 0:00:30]}  Rxf3 {[%clk 0:00:58]} 30. Qxf3 {[%clk 0:00:31]}  Qxb2 {[%clk 0:00:59]} 31. Rf1 {[%clk 0:00:31]}  Rf8 {[%clk 0:00:56]} 32. Qe2 {[%clk 0:00:09]}  Rxf1+ {[%clk 0:00:55]} 33. Qxf1 {[%clk 0:00:10]}  Qxc3 {[%clk 0:00:53]} 34. Bf4 {[%clk 0:00:10]}  Qd4 {[%clk 0:00:51]} 35. d6 {[%clk 0:00:08]}  b4 {[%clk 0:00:49]} 36. Qf3 {[%clk 0:00:08]}  c4 {[%clk 0:00:43]} 37. Bg3 {[%clk 0:00:05]}  b3 {[%clk 0:00:37]} 38. Qb7 {[%clk 0:00:05]}  b2 {[%clk 0:00:34]} 39. d7 {[%clk 0:00:06]}  Bf6 {[%clk 0:00:28]} 40. Kg2 {[%clk 0:00:02]}  Qd2+ {[%clk 0:00:26]} 41. Bf2 {[%clk 0:00:03]}  Bh4 {[%clk 0:00:24]} 42. Qc8+ {[%clk 0:00:02]}  Kg7 {[%clk 0:00:24]} 43. Qc5 {[%clk 0:00:02]}  Qxd7 {[%clk 0:00:15]} 0-1


[Site "https://www.chess.com"]

[Event "Early Titled Tuesday Blitz | February 8 2022"]
[White "Saravana, Krishnan P."]
[Black "Arabidze, Meri"]
[WhiteFideId "5018382"]
[BlackFideId "13604040"]
[WhiteElo "2210"]
[BlackElo "2329"]
[Result "0-1"]
[Round "10"]
[TimeControl "180+1"]
[Date "2022.02.08"]
[WhiteClock "0:00:16"]
[BlackClock "0:00:15"]

1. d4 {[%clk 0:03:00]}  d5 {[%clk 0:02:55]} 2. c4 {[%clk 0:03:01]}  e6 {[%clk 0:02:53]} 3. Nf3 {[%clk 0:03:01]}  Nf6 {[%clk 0:02:53]} 4. Nc3 {[%clk 0:03:01]}  Nbd7 {[%clk 0:02:52]} 5. Bg5 {[%clk 0:03:01]}  Be7 {[%clk 0:02:51]} 6. e3 {[%clk 0:03:01]}  h6 {[%clk 0:02:52]} 7. Bh4 {[%clk 0:02:59]}  O-O {[%clk 0:02:52]} 8. Qc2 {[%clk 0:02:59]}  c5 {[%clk 0:02:51]} 9. cxd5 {[%clk 0:02:58]}  Nxd5 {[%clk 0:02:52]} 10. Bxe7 {[%clk 0:02:58]}  Qxe7 {[%clk 0:02:51]} 11. Be2 {[%clk 0:02:54]}  Nxc3 {[%clk 0:02:49]} 12. bxc3 {[%clk 0:02:54]}  b6 {[%clk 0:02:50]} 13. O-O {[%clk 0:02:42]}  Bb7 {[%clk 0:02:50]} 14. a4 {[%clk 0:02:42]}  Nf6 {[%clk 0:02:42]} 15. a5 {[%clk 0:02:41]}  Be4 {[%clk 0:02:40]} 16. Qa2 {[%clk 0:02:35]}  Qb7 {[%clk 0:02:36]} 17. Rfd1 {[%clk 0:01:57]}  Rfd8 {[%clk 0:02:34]} 18. Ne1 {[%clk 0:01:54]}  Bd5 {[%clk 0:02:29]} 19. c4 {[%clk 0:01:50]}  Bc6 {[%clk 0:02:28]} 20. dxc5 {[%clk 0:01:47]}  bxc5 {[%clk 0:02:25]} 21. Qa3 {[%clk 0:01:41]}  Rdc8 {[%clk 0:02:04]} 22. f3 {[%clk 0:01:38]}  e5 {[%clk 0:01:45]} 23. e4 {[%clk 0:01:36]}  Nd7 {[%clk 0:01:35]} 24. Nd3 {[%clk 0:01:35]}  f6 {[%clk 0:01:26]} 25. Rab1 {[%clk 0:01:30]}  Qa6 {[%clk 0:01:18]} 26. Bf1 {[%clk 0:01:15]}  Kh7 {[%clk 0:01:08]} 27. Nxc5 {[%clk 0:01:10]}  Nxc5 {[%clk 0:01:06]} 28. Qxc5 {[%clk 0:01:10]}  Bxe4 {[%clk 0:01:03]} 29. Qe7 {[%clk 0:01:10]}  Bxb1 {[%clk 0:01:00]} 30. Rxb1 {[%clk 0:01:07]}  Qxa5 {[%clk 0:00:51]} 31. Qf7 {[%clk 0:01:00]}  Qc5+ {[%clk 0:00:48]} 32. Kh1 {[%clk 0:01:00]}  e4 {[%clk 0:00:37]} 33. Rb7 {[%clk 0:00:57]}  Qf8 {[%clk 0:00:34]} 34. Qd5 {[%clk 0:00:51]}  Re8 {[%clk 0:00:31]} 35. Qf5+ {[%clk 0:00:48]}  Kh8 {[%clk 0:00:30]} 36. fxe4 {[%clk 0:00:48]}  Re5 {[%clk 0:00:28]} 37. Qf2 {[%clk 0:00:46]}  a5 {[%clk 0:00:27]} 38. Rc7 {[%clk 0:00:32]}  a4 {[%clk 0:00:26]} 39. c5 {[%clk 0:00:29]}  a3 {[%clk 0:00:26]} 40. Bc4 {[%clk 0:00:29]}  Qd8 {[%clk 0:00:22]} 41. Rf7 {[%clk 0:00:16]}  Qd1+ {[%clk 0:00:21]} 42. Bf1 {[%clk 0:00:16]}  a2 {[%clk 0:00:18]} 43. Rxf6 {[%clk 0:00:16]}  Qxf1+ {[%clk 0:00:15]} 44. Qxf1 {[%clk 0:00:16]}  a1=Q {[%clk 0:00:15]} 45. Rf8+ {[%clk 0:00:16]}  Kh7 {[%clk 0:00:16]} 46. Rxa8 {[%clk 0:00:16]}  Qxf1# {[%clk 0:00:15]} 0-1


[Site "https://www.chess.com"]